fUSD/lending_fUSD_20241125
["ID","MTS","AMOUNT","RATE_DAILY","PERIOD"]
[343238254,1732520531309,-500.0,0.00043507,30]
[343238255,1732520531506,-4655.06,0.00043507,30]
[343238256,1732520531562,-380.3634316,0.00043507,30]
[343238257,1732520531616,-500.0,0.00043507,30]
[343238258,1732520531675,-500.0,0.00043507,30]
[343238259,1732520531728,-1493.93,0.00043507,30]
[343238260,1732520531783,-3973.19,0.00043507,30]
[343238261,1732520531835,-578.47633813,0.00043507,30]
[343238262,1732520531888,-5621.14,0.00043507,30]
[343238263,1732520531938,-500.0,0.00043507,30]
[343238264,1732520531993,-500.0,0.00043507,30]
[343238265,1732520532048,-1433.83,0.00043507,30]
[343238266,1732520532100,-500.0,0.00043507,30]
[343238267,1732520532152,-500.0,0.00043507,30]
[343238268,1732520532206,-7460.3,0.00043507,30]
[343238269,1732520532261,-869.61,0.00043507,30]
[343238270,1732520532510,-500.0,0.00043507,30]
[343238271,1732520532568,-154.959827,0.00043507,30]
[343238272,1732520532631,-22665.96,0.00043507,30]
[343238273,1732520532683,-500.0,0.00043507,30]
[343238274,1732520532738,-668.68,0.00043507,30]
[343238275,1732520532793,-500.0,0.00043507,30]
[343238276,1732520532848,-654.12,0.00043507,30]
[343238277,1732520532907,-500.0,0.00043507,30]
[343238278,1732520532960,-6871.85,0.00043507,30]
[343238279,1732520533013,-1564.66,0.00043507,30]
[343238280,1732520533069,-500.0,0.00043507,30]
[343238281,1732520533123,-606.82,0.00043507,30]
[343238282,1732520533180,-564.73,0.00043507,30]
[343238283,1732520533233,-535.77,0.00043507,30]
[343238284,1732520533289,-515.67,0.00043507,30]
[343238285,1732520533488,-500.0,0.00043507,30]
[343238286,1732520533544,-500.0,0.00043507,30]
[343238287,1732520533598,-500.0,0.00043507,30]
[343238288,1732520533649,-500.0,0.00043507,30]
[343238289,1732520533703,-1679.44,0.00043507,30]
[343238290,1732520533756,-649.88,0.00043507,30]
[343238291,1732520533810,-500.0,0.00043507,30]
[343238292,1732520533864,-500.0,0.00043507,30]
[343238293,1732520533920,-500.0,0.00043507,30]
[343238294,1732520533972,-650.09,0.00043507,30]
[343238295,1732520534026,-500.0,0.00043507,30]
[343238296,1732520534081,-641.28718777,0.00043507,30]
[343238297,1732520534136,-500.0,0.00043507,30]
[343238298,1732520534194,-500.000001,0.00043507,30]
[343238299,1732520534410,-500.0,0.00043507,30]
[343238300,1732520534465,-500.0,0.00043507,30]
[343238301,1732520534520,-1291.77,0.00043507,30]
[343238302,1732520534574,-6712.51,0.00043507,30]
[343238303,1732520534630,-4225.02,0.00043507,30]
[343238304,1732520534682,-500.0,0.00043507,30]
[343238305,1732520534735,-500.0,0.00043507,30]
[343238306,1732520534787,-500.0,0.00043507,30]
[343238307,1732520534839,-508.72,0.00043507,30]
[343238308,1732520534891,-1072.33,0.00043507,30]
[343238309,1732520534943,-1090.48,0.00043507,30]
[343238310,1732520534997,-500.0,0.00043507,30]
[343238311,1732520535050,-500.0,0.00043507,30]
[343238312,1732520535102,-500.0,0.00043507,30]
[343238313,1732520535156,-500.0,0.00043507,30]
[343238314,1732520535362,-500.0,0.00043507,30]
[343238315,1732520535424,-500.0,0.00043507,30]
[343238316,1732520535480,-1360.79,0.00043507,30]
[343238317,1732520535537,-500.0,0.00043507,30]
[343238318,1732520535593,-961.81,0.00043507,30]
[343238319,1732520535648,-500.0,0.00043507,30]
[343238320,1732520535703,-500.0,0.00043507,30]
[343238321,1732520535756,-413.88949978,0.00043507,30]
[343238322,1732520535807,-166.77554052,0.00043507,30]
[343238323,1732520535861,-3712.25,0.00043507,30]
[343238324,1732520535917,-500.0,0.00043507,30]
[343238325,1732520535972,-5099.84,0.00043507,30]
[343238326,1732520536025,-500.0,0.00043507,30]
[343238327,1732520536078,-620.54,0.00043507,30]
[343238328,1732520536267,-500.0,0.00043507,30]
[343238329,1732520536329,-500.0,0.00043507,30]
[343238330,1732520536385,-500.0,0.00043507,30]
[343238331,1732520536442,-11323.23,0.00043507,30]
[343238332,1732520536496,-597.03,0.00043507,30]
[343238333,1732520536551,-500.0,0.00043508,30]
[343238334,1732520536607,-500.0,0.00043508,30]
[343238335,1732520536657,-500.0,0.00043508,30]
[343238336,1732520536710,-500.0,0.00043508,30]
[343238337,1732520536763,-500.0,0.00043508,30]
[343238338,1732520536817,-500.0,0.00043508,30]
[343238339,1732520536869,-505.86632125,0.00043508,30]
[343238340,1732520536924,-500.0,0.00043508,30]
[343238341,1732520536976,-500.0,0.00043508,30]
[343238342,1732520537026,-2229.02,0.00043508,30]
[343238343,1732520537258,-500.0,0.00043508,30]
[343238344,1732520537314,-500.0,0.00043508,30]
[343238345,1732520537370,-500.0,0.00043508,30]
[343238346,1732520537430,-500.0,0.00043508,30]
[343238347,1732520537486,-500.0,0.00043508,30]
[343238348,1732520537545,-500.0,0.00043508,30]
[343238349,1732520537598,-500.0,0.00043508,30]
[343238350,1732520537650,-500.0,0.00043508,30]
[343238351,1732520537707,-500.0,0.00043508,30]
[343238352,1732520537760,-500.0,0.00043508,30]
[343238353,1732520537814,-500.0,0.00043508,30]
[343238354,1732520537872,-526.58340098,0.00043508,30]
[343238355,1732520537929,-525.5356256,0.00043508,30]
[343238356,1732520537983,-392.27257354,0.00043508,30]
[343238357,1732520538039,-500.0,0.00043508,30]
[343238358,1732520538264,-500.0,0.00043508,30]
[343238359,1732520538321,-500.0,0.00043508,30]
[343238360,1732520538377,-500.0,0.00043508,30]
[343238361,1732520538434,-500.0,0.00043508,30]
[343238362,1732520538494,-500.0,0.00043508,30]
[343238363,1732520538548,-500.0,0.00043508,30]
[343238364,1732520538604,-500.0,0.00043508,30]
[343238365,1732520538661,-525.34052204,0.00043508,30]
[343238366,1732520538717,-500.0,0.00043508,30]
[343238367,1732520538774,-515.29832163,0.00043508,30]
[343238368,1732520538834,-500.0,0.00043508,30]
[343238369,1732520538895,-500.0,0.00043508,30]
[343238370,1732520538955,-1807.42,0.00043508,30]
[343238371,1732520539013,-514.26221781,0.00043508,30]
[343238372,1732520539205,-500.0,0.00043508,30]
[343238373,1732520539264,-500.0,0.00043508,30]
[343238374,1732520539321,-247.12326417,0.00043508,30]
[343238375,1732520539378,-500.0,0.00043508,30]
[343238376,1732520539438,-617.45473533,0.00043508,30]
[343238377,1732520539497,-500.0,0.00043508,30]
[343238378,1732520539551,-632.70833276,0.00043508,30]
[343238379,1732520539607,-522.54700146,0.00043508,30]
[343238380,1732520539667,-500.0,0.00043508,30]
[343238381,1732520539722,-500.0,0.00043508,30]
[343238382,1732520539780,-500.0,0.00043508,30]
[343238383,1732520539836,-500.0,0.00043508,30]
[343238384,1732520539893,-500.0,0.00043508,30]
[343238385,1732520539948,-500.0,0.00043508,30]
[343238386,1732520540007,-524.3983424,0.00043508,30]
[343238387,1732520540237,-500.0,0.00043508,30]
[343238388,1732520540294,-500.0,0.00043508,30]
[343238389,1732520540348,-500.0,0.00043508,30]
[343238390,1732520540404,-500.0,0.00043508,30]
[343238391,1732520540456,-500.0,0.00043508,30]
[343238392,1732520540511,-500.0,0.00043508,30]
[343238393,1732520540567,-500.0,0.00043508,30]
[343238394,1732520540620,-391.95972825,0.00043508,30]
[343238395,1732520540676,-517.66007393,0.00043508,30]
[343238396,1732520540727,-500.0,0.00043508,30]
[343238397,1732520540779,-500.0,0.00043508,30]
[343238398,1732520540831,-500.0,0.00043508,30]
[343238399,1732520540886,-500.0,0.00043508,30]
[343238400,1732520540939,-511.75022434,0.00043508,30]
[343238401,1732520540992,-511.30712411,0.00043508,30]
[343238402,1732520541211,-513.33195504,0.00043508,30]
[343238403,1732520541266,-500.0,0.00043508,30]
[343238404,1732520541320,-500.0,0.00043508,30]
[343238405,1732520541375,-500.0,0.00043508,30]
[343238406,1732520541430,-1248.35,0.00043508,30]
[343238407,1732520541489,-500.0,0.00043508,30]
[343238408,1732520541542,-500.0,0.00043508,30]
[343238409,1732520541595,-500.0,0.00043508,30]
[343238410,1732520541650,-500.0,0.00043508,30]
[343238411,1732520541704,-524.53160594,0.00043508,120]
[343238412,1732520541756,-500.0,0.00043508,30]
[343238413,1732520541809,-500.0,0.00043508,30]
[343238414,1732520541864,-500.0,0.00043508,30]
[343238415,1732520541917,-500.0,0.00043508,30]
[343238416,1732520542110,-509.42608412,0.00043508,30]
[343238417,1732520542165,-500.0,0.00043508,30]
[343238418,1732520542222,-500.0,0.00043508,30]
[343238419,1732520542275,-500.0,0.00043508,30]
[343238420,1732520542330,-500.0,0.00043508,30]
[343238421,1732520542392,-500.0,0.00043508,30]
[343238422,1732520542448,-500.0,0.00043508,30]
[343238423,1732520542503,-500.0,0.00043508,30]
[343238424,1732520542556,-524.21155916,0.00043508,30]
[343238425,1732520542611,-500.0,0.00043508,30]
[343238426,1732520542667,-500.0,0.00043508,30]
[343238427,1732520542723,-610.39499177,0.00043508,30]
[343238428,1732520542776,-500.0,0.00043508,30]
[343238429,1732520542832,-556.19115224,0.00043508,30]
[343238430,1732520542889,-500.0,0.00043508,30]
[343238431,1732520543074,-510.58544935,0.00043508,30]
[343238432,1732520543131,-500.0,0.00043508,30]
[343238433,1732520543186,-168.0,0.00043508,30]
[343238434,1732520543240,-500.0,0.00043508,30]
[343238435,1732520543296,-517.67942881,0.00043508,30]
[343238436,1732520543353,-500.0,0.00043508,30]
[343238437,1732520543408,-520.25943953,0.00043508,30]
[343238438,1732520543466,-500.0,0.00043508,30]
[343238439,1732520543520,-518.12135137,0.00043508,30]
[343238440,1732520543577,-380.42771171,0.00043508,30]
[343238441,1732520543630,-500.0,0.00043508,30]
[343238442,1732520543682,-515.75269926,0.00043508,30]
[343238443,1732520543734,-500.0,0.00043508,30]
[343238444,1732520543787,-500.0,0.00043508,30]
[343238445,1732520543838,-500.0,0.00043508,30]
[343238446,1732520544060,-514.31669144,0.00043508,30]
[343238447,1732520544117,-532.77325654,0.00043508,30]
[343238448,1732520544171,-500.0,0.00043508,30]
[343238449,1732520544225,-500.0,0.00043508,30]
[343238450,1732520544280,-500.0,0.00043508,30]
[343238451,1732520544334,-823.91,0.00043508,30]
[343238452,1732520544390,-500.0,0.00043508,30]
[343238453,1732520544443,-534.56,0.00043508,30]
[343238454,1732520544498,-500.0,0.00043508,30]
[343238455,1732520544553,-500.0,0.00043508,30]
[343238456,1732520544612,-372.49934051,0.00043508,30]
[343238457,1732520544667,-506.57103062,0.00043508,30]
[343238458,1732520544720,-500.0,0.00043508,30]
[343238459,1732520544775,-500.0,0.00043508,30]
[343238460,1732520544962,-510.63112627,0.00043508,30]
[343238461,1732520545017,-537.52,0.00043508,30]
[343238462,1732520545072,-500.0,0.00043508,30]
[343238463,1732520545126,-500.0,0.00043508,30]
[343238464,1732520545182,-500.0,0.00043508,30]
[343238465,1732520545236,-521.01915084,0.00043508,30]
[343238466,1732520545289,-500.0,0.00043508,30]
[343238467,1732520545346,-500.0,0.00043508,30]
[343238468,1732520545404,-500.0,0.00043508,30]
[343238469,1732520545458,-500.0,0.00043508,30]
[343238470,1732520545511,-500.0,0.00043508,30]
[343238471,1732520545563,-500.0,0.00043508,30]
[343238472,1732520545616,-500.0,0.00043508,30]
[343238473,1732520545671,-1041.67,0.00043508,30]
[343238474,1732520545724,-531.71017322,0.00043508,30]
[343238475,1732520545899,-500.0,0.00043508,30]
[343238476,1732520545952,-500.0,0.00043508,30]
[343238477,1732520546004,-500.0,0.00043508,30]
[343238478,1732520546056,-500.0,0.00043508,30]
[343238479,1732520546110,-1114.06,0.00043508,30]
[343238480,1732520546164,-500.0,0.00043508,30]
[343238481,1732520546217,-516.86157494,0.00043508,30]
[343238482,1732520546271,-500.0,0.00043508,30]
[343238483,1732520546324,-500.0,0.00043508,30]
[343238484,1732520546376,-500.0,0.00043508,30]
[343238485,1732520546431,-500.0,0.00043508,30]
[343238486,1732520546483,-515.48583637,0.00043508,30]
[343238487,1732520546539,-500.0,0.00043508,30]
[343238488,1732520546591,-500.0,0.00043508,30]
[343238489,1732520546643,-500.0,0.00043508,30]
[343238490,1732520546881,-500.0,0.00043508,30]
[343238491,1732520546938,-500.0,0.00043508,30]
[343238492,1732520546994,-508.06,0.00043508,30]
[343238493,1732520547048,-469.45516373,0.00043508,30]
[343238494,1732520547104,-500.0,0.00043508,30]
[343238495,1732520547159,-500.0,0.00043508,30]
[343238496,1732520547215,-645.62941332,0.00043508,30]
[343238497,1732520547269,-500.0,0.00043508,30]
[343238498,1732520547330,-514.64083498,0.00043508,30]
[343238499,1732520547393,-515.05248328,0.00043508,30]
[343238500,1732520547449,-508.30335037,0.00043508,30]
[343238501,1732520547503,-500.0,0.00043508,30]
[343238502,1732520547563,-500.0,0.00043508,30]
[343238503,1732520547618,-500.0,0.00043508,30]
[343238504,1732520547840,-500.0,0.00043508,30]
[343238505,1732520547895,-500.0,0.00043508,30]
[343238506,1732520547950,-505.9277073,0.00043508,30]
[343238507,1732520548006,-500.0,0.00043508,30]
[343238508,1732520548058,-605.7,0.00043508,30]
[343238509,1732520548112,-619.30960169,0.00043508,30]
[343238510,1732520548163,-500.0,0.00043508,30]
[343238511,1732520548220,-500.0,0.00043508,30]
[343238512,1732520548274,-936.31,0.00043508,30]
[343238513,1732520548326,-571.22935835,0.00043508,30]
[343238514,1732520548381,-515.30720477,0.00043508,30]
[343238515,1732520548440,-575.29611712,0.00043508,30]
[343238516,1732520548499,-500.0,0.00043508,30]
[343238517,1732520548553,-533.57399683,0.00043508,30]
[343238518,1732520548606,-1285.57,0.00043508,30]
[343238519,1732520548834,-519.03530088,0.00043508,30]
[343238520,1732520548889,-500.0,0.00043508,30]
[343238521,1732520548944,-534.64,0.00043508,30]
[343238522,1732520548997,-601.45104058,0.00043508,30]
[343238523,1732520549051,-500.0,0.00043508,30]
[343238524,1732520549106,-519.4531758,0.00043508,30]
[343238525,1732520549159,-500.0,0.00043508,30]
[343238526,1732520549211,-500.0,0.00043508,30]
[343238527,1732520549263,-500.0,0.00043508,30]
[343238528,1732520549319,-301.96967929,0.00043508,30]
[343238529,1732520549372,-500.0,0.00043508,30]
[343238530,1732520549424,-500.0,0.00043508,30]
[343238531,1732520549478,-547.0918793,0.00043508,30]
[343238532,1732520549533,-500.0,0.00043508,30]
[343238533,1732520549717,-500.0,0.00043508,30]
[343238534,1732520549770,-500.0,0.00043508,30]
[343238535,1732520549824,-512.31377656,0.00043508,30]
[343238536,1732520549877,-500.0,0.00043508,30]
[343238537,1732520549931,-500.0,0.00043508,30]
[343238538,1732520549984,-500.0,0.00043508,30]
[343238539,1732520550037,-500.0,0.00043508,30]
[343238540,1732520550089,-500.0,0.00043508,30]
[343238541,1732520550145,-1031.9,0.00043508,30]
[343238542,1732520550201,-500.0,0.00043508,30]
[343238543,1732520550256,-500.0,0.00043508,30]
[343238544,1732520550310,-500.0,0.00043508,30]
[343238545,1732520550363,-500.0,0.00043508,30]
[343238546,1732520550416,-500.0,0.00043508,30]
[343238547,1732520550472,-500.0,0.00043508,30]
[343238548,1732520550698,-500.0,0.00043508,30]
[343238549,1732520550756,-557.68100198,0.00043508,30]
[343238550,1732520550812,-1000.5,0.00043508,30]
[343238551,1732520550868,-500.0,0.00043508,30]
[343238552,1732520550923,-1080.05,0.00043508,30]
[343238553,1732520550978,-500.0,0.00043508,30]
[343238554,1732520551034,-500.0,0.00043508,30]
[343238555,1732520551090,-337.12571042,0.00043508,30]
[343238556,1732520551148,-500.0,0.00043508,30]
[343238557,1732520551204,-500.0,0.00043508,30]
[343238558,1732520551261,-500.0,0.00043508,30]
[343238559,1732520551316,-500.0,0.00043508,30]
[343238560,1732520551370,-500.0,0.00043508,30]
[343238561,1732520551423,-500.0,0.00043508,30]
[343238562,1732520551475,-500.0,0.00043508,30]
[343238563,1732520551675,-500.0,0.00043508,30]
[343238564,1732520551731,-500.0,0.00043508,30]
[343238565,1732520551791,-500.0,0.00043508,30]
[343238566,1732520551846,-500.0,0.00043508,30]
[343238567,1732520551900,-500.0,0.00043508,30]
[343238568,1732520551952,-500.0,0.00043508,30]
[343238569,1732520552006,-500.0,0.00043508,30]
[343238570,1732520552061,-500.0,0.00043508,30]
[343238571,1732520552112,-500.0,0.00043508,30]
[343238572,1732520552169,-474.91305629,0.00043508,30]
[343238573,1732520552223,-500.0,0.00043508,30]
[343238574,1732520552278,-500.0,0.00043508,30]
[343238575,1732520552331,-500.0,0.00043508,30]
[343238576,1732520552386,-500.0,0.00043508,30]
[343238577,1732520552604,-500.0,0.00043508,30]
[343238578,1732520552659,-500.0,0.00043508,30]
[343238579,1732520552716,-500.0,0.00043508,30]
[343238580,1732520552774,-500.0,0.00043508,30]
[343238581,1732520552830,-500.0,0.00043508,30]
[343238582,1732520552885,-500.0,0.00043508,30]
[343238583,1732520552944,-500.0,0.00043508,30]
[343238584,1732520552996,-500.0,0.00043508,30]
[343238585,1732520553052,-828.18,0.00043508,30]
[343238586,1732520553107,-500.0,0.00043508,30]
[343238587,1732520553165,-500.0,0.00043508,30]
[343238588,1732520553221,-500.0,0.00043508,30]
[343238589,1732520553279,-292.66136253,0.00043508,30]
[343238590,1732520553335,-500.0,0.00043508,30]
[343238591,1732520553393,-500.0,0.00043508,30]
[343238592,1732520553598,-1066.83,0.00043508,30]
[343238593,1732520553657,-500.0,0.00043508,30]
[343238594,1732520553714,-500.0,0.00043508,30]
[343238595,1732520553776,-500.0,0.00043508,30]
[343238596,1732520553836,-500.0,0.00043508,30]
[343238597,1732520553893,-5389.3,0.00043508,30]
[343238598,1732520553950,-500.0,0.00043508,30]
[343238599,1732520554007,-500.0,0.00043508,30]
[343238600,1732520554061,-500.0,0.00043508,30]
[343238601,1732520554116,-500.0,0.00043508,30]
[343238602,1732520554171,-500.0,0.00043508,30]
[343238603,1732520554224,-500.0,0.00043508,30]
[343238604,1732520554279,-500.0,0.00043508,30]
[343238605,1732520554332,-500.0,0.00043508,30]
[343238606,1732520554388,-968.76,0.00043508,30]
[343238607,1732520554632,-500.0,0.00043508,30]
[343238608,1732520554690,-500.0,0.00043508,30]
[343238609,1732520554747,-500.0,0.00043508,30]
[343238610,1732520554801,-500.0,0.00043508,30]
[343238611,1732520554856,-500.0,0.00043508,30]
[343238612,1732520554911,-516.87943629,0.00043508,30]
[343238613,1732520554966,-500.0,0.00043508,30]
[343238614,1732520555022,-500.0,0.00043508,30]
[343238615,1732520555074,-500.0,0.00043508,30]
[343238616,1732520555127,-500.0,0.00043508,30]
[343238617,1732520555184,-1163.39,0.00043508,30]
[343238618,1732520555238,-500.0,0.00043508,30]
[343238619,1732520555291,-500.0,0.00043508,30]
[343238620,1732520555343,-500.0,0.00043508,30]
[343238621,1732520555560,-500.0,0.00043508,30]
[343238622,1732520555615,-227.45693056,0.00043508,30]
[343238623,1732520555668,-1000.0,0.00043508,30]
[343238624,1732520555719,-3398.56,0.00043508,30]
[343238625,1732520555773,-500.0,0.00043508,30]
[343238626,1732520555827,-6624.68,0.00043508,30]
[343238627,1732520555880,-500.0,0.00043508,30]
[343238628,1732520555936,-500.0,0.00043508,30]
[343238629,1732520555989,-500.0,0.00043508,30]
[343238630,1732520556041,-500.0,0.00043508,30]
[343238631,1732520556094,-500.0,0.00043508,30]
[343238632,1732520556150,-500.0,0.00043508,30]
[343238633,1732520556204,-500.0,0.00043508,30]
[343238634,1732520556257,-500.0,0.00043508,30]
[343238635,1732520556309,-500.0,0.00043508,30]
[343238636,1732520556542,-500.0,0.00043508,30]
[343238637,1732520556597,-500.0,0.00043508,30]
[343238638,1732520556653,-500.0,0.00043508,30]
[343238639,1732520556714,-513.83427403,0.00043508,30]
[343238640,1732520556769,-898.18,0.00043508,30]
[343238641,1732520556825,-500.0,0.00043508,30]
[343238642,1732520556880,-500.0,0.00043508,30]
[343238643,1732520556937,-500.0,0.00043508,30]
[343238644,1732520556991,-500.0,0.00043508,30]
[343238645,1732520557049,-5475.13,0.00043508,30]
[343238646,1732520557104,-500.0,0.00043508,30]
[343238647,1732520557158,-1220.07,0.00043508,30]
[343238648,1732520557215,-500.0,0.00043508,30]
[343238649,1732520557268,-500.0,0.00043508,30]
[343238650,1732520557321,-500.0,0.00043508,30]
[343238651,1732520557548,-879.42,0.00043508,30]
[343238652,1732520557603,-7385.73,0.00043508,30]
[343238653,1732520557662,-500.0,0.00043508,30]
[343238654,1732520557719,-500.0,0.00043508,30]
[343238655,1732520557772,-500.0,0.00043508,30]
[343238656,1732520557829,-500.0,0.00043508,30]
[343238657,1732520557884,-507.60567494,0.00043508,30]
[343238658,1732520557941,-1239.37,0.00043508,30]
[343238659,1732520557995,-533.45,0.00043508,30]
[343238660,1732520558051,-7323.19,0.00043508,30]
[343238661,1732520558106,-500.0,0.00043508,30]
[343238662,1732520558166,-514.30580602,0.00043508,30]
[343238663,1732520558221,-500.0,0.00043508,30]
[343238664,1732520558279,-500.0,0.00043508,30]
[343238665,1732520558493,-500.0,0.00043508,30]
[343238666,1732520558550,-500.0,0.00043508,30]
[343238667,1732520558607,-518.71076795,0.00043508,30]
[343238668,1732520558662,-509.91307813,0.00043508,30]
[343238669,1732520558718,-1505.16,0.00043508,30]
[343238670,1732520558774,-500.0,0.00043508,30]
[343238671,1732520558828,-500.0,0.00043508,30]
[343238672,1732520558884,-500.0,0.00043508,30]
[343238673,1732520558941,-500.0,0.00043508,30]
[343238674,1732520558999,-500.0,0.00043508,30]
[343238675,1732520559051,-500.0,0.00043508,30]
[343238676,1732520559108,-500.0,0.00043508,30]
[343238677,1732520559160,-500.0,0.00043508,30]
[343238678,1732520559214,-500.0,0.00043508,30]
[343238679,1732520559270,-500.0,0.00043508,30]
[343238680,1732520559491,-500.0,0.00043508,30]
[343238681,1732520559549,-500.0,0.00043508,30]
[343238682,1732520559606,-500.0,0.00043508,30]
[343238683,1732520559671,-500.0,0.00043508,30]
[343238684,1732520559727,-500.0,0.00043508,30]
[343238685,1732520559783,-500.0,0.00043508,30]
[343238686,1732520559838,-500.0,0.00043508,30]
[343238687,1732520559894,-556.01321584,0.00043508,30]
[343238688,1732520559952,-500.0,0.00043508,30]
[343238689,1732520560006,-1355.99,0.00043508,30]
[343238690,1732520560060,-500.0,0.00043508,30]
[343238691,1732520560115,-500.0,0.00043508,30]
[343238692,1732520560170,-500.0,0.00043508,30]
[343238693,1732520560224,-500.0,0.00043508,30]
[343238694,1732520560278,-500.0,0.00043508,30]
[343238695,1732520560501,-1630.64,0.00043508,30]
[343238696,1732520560555,-848.55,0.00043508,30]
[343238697,1732520560608,-500.0,0.00043508,30]
[343238698,1732520560663,-500.0,0.00043508,30]
[343238699,1732520560720,-513.44915447,0.00043508,30]
[343238700,1732520560774,-4341.65,0.00043508,30]
[343238701,1732520560829,-558.96,0.00043508,30]
[343238702,1732520560882,-500.0,0.00043508,30]
[343238703,1732520560933,-508.32962357,0.00043508,30]
[343238704,1732520560987,-500.0,0.00043508,30]
[343238705,1732520561041,-500.0,0.00043508,30]
[343238706,1732520561098,-500.0,0.00043508,30]
[343238707,1732520561153,-18801.44,0.00043508,30]
[343238708,1732520561206,-714.03948849,0.00043508,30]
[343238709,1732520561425,-500.0,0.00043508,30]
[343238710,1732520561478,-500.0,0.00043508,30]
[343238711,1732520561535,-500.0,0.00043508,30]
[343238712,1732520561589,-500.0,0.00043508,30]
[343238713,1732520561642,-514.82336442,0.00043508,30]
[343238714,1732520561698,-500.0,0.00043508,30]
[343238715,1732520561751,-1788.21,0.00043508,30]
[343238716,1732520561804,-500.0,0.00043508,30]
[343238717,1732520561859,-500.0,0.00043508,30]
[343238718,1732520561913,-500.0,0.00043508,30]
[343238719,1732520561968,-500.0,0.00043508,30]
[343238720,1732520562022,-500.0,0.00043508,30]
[343238721,1732520562076,-500.0,0.00043508,30]
[343238722,1732520562129,-2898.13,0.00043508,30]
[343238723,1732520562183,-500.0,0.00043508,30]
[343238724,1732520562405,-500.0,0.00043508,30]
[343238725,1732520562463,-500.0,0.00043508,30]
[343238726,1732520562518,-500.0,0.00043508,30]
[343238727,1732520562571,-500.0,0.00043508,30]
[343238728,1732520562627,-1068.16,0.00043508,30]
[343238729,1732520562684,-396.07872759,0.00043508,30]
[343238730,1732520562746,-348.70577097,0.00043508,30]
[343238731,1732520562800,-500.0,0.00043508,30]
[343238732,1732520562855,-529.65931149,0.00043508,30]
[343238733,1732520562908,-5289.41,0.00043508,30]
[343238734,1732520562965,-285.68603469,0.00043508,30]
[343238735,1732520563021,-3694.44,0.00043508,30]
[343238736,1732520563073,-500.0,0.00043508,30]
[343238737,1732520563135,-500.0,0.00043508,30]
[343238738,1732520563209,-441.96705519,0.00043508,30]
[343238739,1732520563421,-500.0,0.00043508,30]
[343238740,1732520563481,-500.0,0.00043508,30]
[343238741,1732520563537,-500.0,0.00043508,30]
[343238742,1732520563595,-500.0,0.00043508,30]
[343238743,1732520563656,-527.24877002,0.00043508,30]
[343238744,1732520563715,-548.06220811,0.00043508,30]
[343238745,1732520563774,-364.96227833,0.00043508,30]
[343238746,1732520563833,-500.0,0.00043508,30]
[343238747,1732520563892,-506.95608068,0.00043508,30]
[343238748,1732520563955,-500.0,0.00043508,30]
[343238749,1732520564011,-523.99404468,0.00043508,30]
[343238750,1732520564068,-500.0,0.00043508,30]
[343238751,1732520564123,-500.0,0.00043508,30]
[343238752,1732520564178,-500.0,0.00043508,30]
[343238753,1732520564389,-500.0,0.00043508,30]